fUSD/lending_fUSD_20251212
["ID","MTS","AMOUNT","RATE_DAILY","PERIOD"]
[398372446,1765559275049,-500.0,0.00038904,30]
[398372448,1765559275126,-500.0,0.00038904,30]
[398372450,1765559275186,-500.0,0.00038904,30]
[398372452,1765559275244,-352.16439719,0.00038904,30]
[398372455,1765559275315,-500.0,0.00038904,30]
[398372457,1765559275381,-500.0,0.00038904,30]
[398372459,1765559275442,-500.0,0.00038904,30]
[398372462,1765559275501,-500.0,0.00038904,30]
[398372464,1765559275564,-767.46,0.00038904,30]
[398372466,1765559275620,-500.0,0.00038904,30]
[398372468,1765559275672,-500.0,0.00038904,30]
[398372470,1765559275725,-500.0,0.00038904,30]
[398372472,1765559275779,-500.0,0.00038904,30]
[398372475,1765559275837,-500.0,0.00038904,30]
[398372477,1765559275895,-500.0,0.00038904,30]
[398372479,1765559275951,-500.0,0.00038904,30]
[398372481,1765559276007,-500.0,0.00038904,30]
[398372483,1765559276066,-500.0,0.00038904,30]
[398372485,1765559276126,-500.0,0.00038904,30]
[398372488,1765559276187,-500.0,0.00038904,30]
[398372490,1765559276243,-500.0,0.00038904,30]
[398372492,1765559276304,-500.0,0.00038904,30]
[398372494,1765559276372,-500.0,0.00038904,30]
[398372496,1765559276434,-500.0,0.00038904,30]
[398372498,1765559276500,-500.0,0.00038904,30]
[398372500,1765559276560,-500.0,0.00038904,30]
[398372503,1765559276619,-500.0,0.00038904,30]
[398372505,1765559276678,-500.0,0.00038904,30]
[398372507,1765559276736,-500.0,0.00038904,30]
[398372509,1765559276804,-500.0,0.00038904,30]
[398372512,1765559276861,-500.0,0.00038904,30]
[398372514,1765559276918,-500.0,0.00038904,30]
[398372516,1765559276970,-500.0,0.00038904,30]
[398372518,1765559277023,-505.26445054,0.00038904,30]
[398372520,1765559277076,-500.0,0.00038904,30]
[398372522,1765559277131,-500.0,0.00038904,30]
[398372524,1765559277189,-500.0,0.00038904,30]
[398372527,1765559277248,-500.0,0.00038904,30]
[398372529,1765559277305,-871.13,0.00038904,30]
[398372536,1765559277605,-500.0,0.00038904,30]
[398372538,1765559277657,-500.0,0.00038904,30]
[398372540,1765559277710,-500.0,0.00038904,30]
[398372542,1765559277763,-500.0,0.00038904,30]
[398372544,1765559277815,-500.0,0.00038904,30]
[398372546,1765559277865,-500.0,0.00038904,30]
[398372548,1765559277919,-500.0,0.00038904,30]
[398372551,1765559277973,-660.76,0.00038904,30]
[398372553,1765559278028,-1294.87,0.00038904,30]
[398372555,1765559278080,-500.0,0.00038904,30]
[398372557,1765559278133,-500.0,0.00038904,30]
[398372559,1765559278188,-500.0,0.00038904,30]
[398372561,1765559278250,-503.46410607,0.00038904,30]
[398372563,1765559278305,-1208.8,0.00038904,30]
[398372566,1765559278361,-199.26834621,0.00038904,30]
[398372568,1765559278416,-500.0,0.00038904,30]
[398372570,1765559278466,-689.89,0.00038904,30]
[398372571,1765559278520,-500.0,0.00038904,30]
[398372572,1765559278573,-500.0,0.00038904,30]
[398372573,1765559278632,-500.0,0.00038904,30]
[398372574,1765559278686,-500.0,0.00038904,30]
[398372577,1765559278740,-500.0,0.00038904,30]
[398372579,1765559278788,-500.0,0.00038904,30]
[398372581,1765559278842,-500.0,0.00038904,30]
[398372583,1765559278893,-500.0,0.00038904,30]
[398372585,1765559278945,-737.43,0.00038904,30]
[398372587,1765559278999,-500.0,0.00038904,30]
[398372590,1765559279054,-515.1,0.00038904,30]
[398372592,1765559279105,-562.24,0.00038904,30]
[398372594,1765559279158,-500.0,0.00038904,30]
[398372596,1765559279210,-500.0,0.00038904,30]
[398372598,1765559279260,-521.79708333,0.00038904,30]
[398372600,1765559279316,-500.0,0.00038904,30]
[398372602,1765559279374,-619.32,0.00038904,30]
[398372605,1765559279429,-500.0,0.00038904,30]
[398372607,1765559279479,-500.0,0.00038904,30]
[398372609,1765559279532,-500.0,0.00038904,30]
[398372611,1765559279584,-500.0,0.00038904,30]
[398372613,1765559279636,-500.0,0.00038904,30]
[398372615,1765559279689,-500.0,0.00038904,30]
[398372617,1765559279741,-1340.71,0.00038904,30]
[398372620,1765559279797,-500.0,0.00038904,30]
[398372622,1765559279860,-500.0,0.00038904,30]
[398372624,1765559279914,-500.0,0.00038904,30]
[398372626,1765559279966,-500.0,0.00038904,30]
[398372628,1765559280026,-500.0,0.00038904,30]
[398372630,1765559280088,-592.55,0.00038904,30]
[398372633,1765559280148,-500.0,0.00038904,30]
[398372635,1765559280209,-500.0,0.00038904,30]
[398372637,1765559280268,-790.25,0.00038904,30]
[398372639,1765559280324,-551.50228564,0.00038904,30]
[398372641,1765559280378,-500.0,0.00038904,30]
[398372643,1765559280436,-500.0,0.00038904,30]
[398372645,1765559280496,-500.0,0.00038904,30]
[398372647,1765559280554,-500.0,0.00038904,30]
[398372649,1765559280614,-772.71,0.00038904,30]
[398372652,1765559280671,-500.0,0.00038904,30]
[398372654,1765559280726,-889.83,0.00038904,30]
[398372656,1765559280785,-656.2,0.00038904,30]
[398372658,1765559280848,-500.0,0.00038904,30]
[398372660,1765559280915,-500.0,0.00038904,30]
[398372663,1765559280982,-592.15,0.00038904,30]
[398372665,1765559281045,-500.0,0.00038904,30]
[398372667,1765559281106,-500.0,0.00038904,30]
[398372670,1765559281176,-500.0,0.00038904,30]
[398372672,1765559281232,-500.0,0.00038904,30]
[398372674,1765559281286,-500.0,0.00038904,30]
[398372676,1765559281349,-500.0,0.00038904,30]
[398372678,1765559281418,-500.0,0.00038904,30]
[398372681,1765559281481,-500.0,0.00038904,30]
[398372683,1765559281540,-500.0,0.00038904,30]
[398372685,1765559281593,-500.0,0.00038904,30]
[398372687,1765559281647,-500.0,0.00038904,30]
[398372689,1765559281700,-526.55,0.00038904,30]
[398372691,1765559281753,-813.96130405,0.00038904,120]
[398372694,1765559281808,-500.0,0.00038904,30]
[398372696,1765559281865,-416.60666306,0.00038904,30]
[398372698,1765559281927,-500.0,0.00038904,30]
[398372700,1765559281992,-500.0,0.00038904,30]
[398372702,1765559282060,-500.0,0.00038904,30]
[398372705,1765559282130,-500.0,0.00038904,30]
[398372707,1765559282202,-522.83091263,0.00038904,30]
[398372709,1765559282267,-1443.54,0.00038904,30]
[398372711,1765559282330,-500.0,0.00038904,30]
[398372713,1765559282403,-500.0,0.00038904,30]
[398372716,1765559282470,-503.16,0.00038904,30]
[398372718,1765559282528,-512.46,0.00038904,30]
[398372720,1765559282588,-500.0,0.00038904,30]
[398372722,1765559282653,-896.59,0.00038904,30]
[398372724,1765559282714,-500.34,0.00038904,30]
[398372726,1765559282777,-817.71,0.00038904,30]
[398372729,1765559282838,-1256.23,0.00038904,30]
[398372731,1765559282908,-756.26,0.00038904,30]
[398372733,1765559282968,-500.0,0.00038904,30]
[398372735,1765559283028,-500.0,0.00038904,30]
[398372743,1765559283467,-500.0,0.00038904,30]
[398372745,1765559283550,-597.9,0.00038904,30]
[398372747,1765559283626,-500.0,0.00038904,30]
[398372750,1765559283697,-625.93,0.00038904,30]
[398372752,1765559283759,-500.0,0.00038904,30]
[398372754,1765559283824,-500.0,0.00038904,30]
[398372756,1765559283886,-500.0,0.00038904,30]
[398372758,1765559283951,-500.0,0.00038904,30]
[398372760,1765559284014,-500.0,0.00038904,30]
[398372762,1765559284085,-500.0,0.00038904,30]
[398372764,1765559284153,-673.07,0.00038904,30]
[398372767,1765559284216,-500.0,0.00038904,30]
[398372769,1765559284274,-748.24,0.00038904,30]
[398372771,1765559284343,-500.0,0.00038904,30]
[398372773,1765559284418,-500.0,0.00038904,30]
[398372776,1765559284482,-500.0,0.00038904,30]
[398372778,1765559284545,-500.0,0.00038904,30]
[398372780,1765559284612,-1096.61,0.00038904,30]
[398372782,1765559284686,-500.0,0.00038904,30]
[398372785,1765559284754,-339.65409412,0.00038904,30]
[398372787,1765559284820,-500.0,0.00038904,30]
[398372789,1765559284879,-500.0,0.00038904,30]
[398372791,1765559284945,-500.0,0.00038904,30]
[398372793,1765559285003,-500.0,0.00038904,30]
[398372796,1765559285062,-500.0,0.00038904,30]
[398372798,1765559285122,-500.0,0.00038904,30]
[398372800,1765559285183,-500.0,0.00038904,30]
[398372802,1765559285246,-500.0,0.00038904,30]
[398372805,1765559285312,-519.78712064,0.00038904,30]
[398372807,1765559285376,-500.0,0.00038904,30]
[398372809,1765559285438,-500.0,0.00038904,30]
[398372811,1765559285498,-500.0,0.00038904,30]
[398372813,1765559285557,-500.0,0.00038904,30]
[398372815,1765559285618,-500.0,0.00038904,30]
[398372817,1765559285681,-831.5,0.00038904,30]
[398372819,1765559285742,-500.0,0.00038904,30]
[398372822,1765559285802,-711.65,0.00038904,30]
[398372824,1765559285862,-500.0,0.00038904,30]
[398372826,1765559285922,-500.0,0.00038904,30]
[398372828,1765559285978,-500.0,0.00038904,30]
[398372830,1765559286044,-500.0,0.00038904,30]
[398372832,1765559286105,-500.0,0.00038904,30]
[398372834,1765559286164,-500.0,0.00038904,30]
[398372836,1765559286222,-500.0,0.00038904,30]
[398372838,1765559286288,-613.25,0.00038904,30]
[398372840,1765559286352,-500.0,0.00038904,30]
[398372842,1765559286412,-500.0,0.00038904,30]
[398372844,1765559286482,-500.0,0.00038904,120]
[398372846,1765559286548,-500.0,0.00038904,30]
[398372848,1765559286613,-500.0,0.00038904,30]
[398372851,1765559286675,-702.41,0.00038904,30]
[398372853,1765559286734,-163.9859548,0.00038904,30]
[398372855,1765559286791,-500.0,0.00038904,30]
[398372857,1765559286848,-500.0,0.00038904,30]
[398372859,1765559286912,-500.0,0.00038904,30]
[398372862,1765559286976,-500.0,0.00038904,30]
[398372864,1765559287040,-500.0,0.00038904,30]
[398372866,1765559287100,-634.10345859,0.00038904,30]
[398372868,1765559287163,-500.0,0.00038904,30]
[398372870,1765559287223,-500.0,0.00038904,30]
[398372871,1765559287289,-500.0,0.00038904,30]
[398372872,1765559287354,-500.0,0.00038904,30]
[398372873,1765559287418,-500.0,0.00038904,30]
[398372874,1765559287481,-751.53,0.00038904,30]
[398372875,1765559287545,-500.0,0.00038904,30]
[398372876,1765559287608,-500.0,0.00038904,30]
[398372877,1765559287670,-500.0,0.00038904,30]
[398372878,1765559287730,-500.0,0.00038904,30]
[398372880,1765559287785,-500.0,0.00038904,30]
[398372882,1765559287844,-500.0,0.00038904,30]
[398372885,1765559287902,-500.0,0.00038904,30]
[398372887,1765559287959,-500.0,0.00038904,30]
[398372889,1765559288019,-500.0,0.00038904,30]
[398372891,1765559288082,-500.0,0.00038904,30]
[398372893,1765559288148,-500.0,0.00038904,30]
[398372896,1765559288218,-500.0,0.00038904,30]
[398372898,1765559288283,-500.0,0.00038904,30]
[398372900,1765559288348,-500.0,0.00038904,30]
[398372902,1765559288419,-500.0,0.00038904,30]
[398372904,1765559288481,-500.0,0.00038904,30]
[398372906,1765559288545,-500.0,0.00038904,30]
[398372908,1765559288610,-500.0,0.00038904,30]
[398372911,1765559288681,-500.0,0.00038904,30]
[398372913,1765559288744,-500.0,0.00038904,30]
[398372915,1765559288805,-856.21,0.00038904,30]
[398372917,1765559288866,-500.0,0.00038904,30]
[398372919,1765559288930,-500.0,0.00038904,30]
[398372921,1765559288992,-1298.66,0.00038904,30]
[398372923,1765559289062,-500.0,0.00038904,30]
[398372926,1765559289131,-500.0,0.00038904,30]
[398372928,1765559289194,-464.51745032,0.00038904,30]
[398372930,1765559289254,-625.34,0.00038904,30]
[398372932,1765559289319,-605.46,0.00038904,30]
[398372934,1765559289381,-500.0,0.00038904,30]
[398372940,1765559289685,-500.0,0.00038904,30]
[398372943,1765559289749,-2537.52,0.00038904,30]
[398372945,1765559289809,-545.21,0.00038904,30]
[398372947,1765559289863,-500.0,0.00038904,30]
[398372949,1765559289924,-612.3,0.00038904,30]
[398372951,1765559289982,-500.0,0.00038904,30]
[398372953,1765559290040,-500.0,0.00038904,30]
[398372955,1765559290104,-500.0,0.00038904,30]
[398372958,1765559290165,-500.0,0.00038904,30]
[398372960,1765559290222,-500.0,0.00038904,30]
[398372962,1765559290285,-758.93,0.00038904,30]
[398372964,1765559290345,-500.0,0.00038904,30]
[398372966,1765559290407,-580.78,0.00038904,30]
[398372968,1765559290471,-500.0,0.00038904,30]
[398372970,1765559290531,-500.0,0.00038904,30]
[398372973,1765559290593,-500.0,0.00038904,30]
[398372975,1765559290660,-500.0,0.00038904,30]
[398372977,1765559290721,-500.0,0.00038904,30]
[398372979,1765559290783,-500.0,0.00038904,30]
[398372981,1765559290843,-568.8,0.00038904,30]
[398372983,1765559290903,-500.0,0.00038904,30]
[398372986,1765559290967,-681.75,0.00038904,30]
[398372988,1765559291023,-904.15,0.00038904,30]
[398372990,1765559291078,-521.98,0.00038904,30]
[398372992,1765559291134,-500.0,0.00038904,30]
[398372994,1765559291195,-500.0,0.00038904,30]
[398372996,1765559291254,-500.0,0.00038904,30]
[398372999,1765559291315,-1178.64,0.00038904,30]
[398373001,1765559291372,-500.0,0.00038904,30]
[398373003,1765559291434,-500.0,0.00038904,30]
[398373005,1765559291495,-500.0,0.00038904,30]
[398373007,1765559291553,-987.42,0.00038904,30]
[398373010,1765559291614,-500.0,0.00038904,30]
[398373012,1765559291670,-688.42,0.00038904,30]
[398373014,1765559291727,-500.0,0.00038904,30]
[398373016,1765559291784,-591.37,0.00038904,30]
[398373019,1765559291844,-360.65641146,0.00038904,30]
[398373021,1765559291901,-500.0,0.00038904,30]
[398373023,1765559291956,-500.0,0.00038904,30]
[398373025,1765559292013,-500.0,0.00038904,30]
[398373027,1765559292068,-500.0,0.00038904,30]
[398373030,1765559292126,-518.77,0.00038904,30]
[398373032,1765559292185,-1073.23,0.00038904,30]
[398373034,1765559292246,-500.0,0.00038904,30]
[398373036,1765559292306,-500.0,0.00038904,30]
[398373038,1765559292376,-500.0,0.00038904,30]
[398373040,1765559292445,-1014.08,0.00038904,30]
[398373043,1765559292511,-500.0,0.00038904,30]
[398373045,1765559292588,-500.0,0.00038904,30]
[398373047,1765559292645,-500.0,0.00038904,30]
[398373048,1765559292709,-500.0,0.00038904,30]
[398373049,1765559292774,-500.0,0.00038904,30]
[398373050,1765559292838,-500.0,0.00038904,30]
[398373053,1765559292901,-1249.97,0.00038904,30]
[398373055,1765559292957,-500.0,0.00038904,30]
[398373057,1765559293017,-500.0,0.00038904,30]
[398373059,1765559293071,-500.0,0.00038904,30]
[398373061,1765559293125,-500.0,0.00038904,30]
[398373063,1765559293182,-500.0,0.00038904,30]
[398373065,1765559293240,-952.07,0.00038904,30]
[398373068,1765559293297,-613.74,0.00038904,30]
[398373070,1765559293354,-500.0,0.00038904,30]
[398373072,1765559293408,-612.16,0.00038904,30]
[398373074,1765559293461,-229.0448645,0.00038904,30]
[398373076,1765559293518,-500.0,0.00038904,30]
[398373078,1765559293582,-500.0,0.00038904,30]
[398373080,1765559293636,-854.34,0.00038904,30]
[398373082,1765559293690,-363.54,0.00038904,30]
[398373084,1765559293743,-500.0,0.00038904,30]
[398373086,1765559293799,-500.0,0.00038904,30]
[398373089,1765559293854,-627.56,0.00038904,30]
[398373091,1765559293911,-500.0,0.00038904,30]
[398373093,1765559293965,-500.0,0.00038904,30]
[398373095,1765559294021,-500.0,0.00038904,30]
[398373097,1765559294077,-500.0,0.00038904,30]
[398373099,1765559294130,-895.82,0.00038904,30]
[398373101,1765559294183,-500.0,0.00038904,30]
[398373104,1765559294238,-500.0,0.00038904,30]
[398373106,1765559294290,-970.02,0.00038904,30]
[398373108,1765559294347,-500.0,0.00038904,30]
[398373110,1765559294407,-500.0,0.00038904,30]
[398373112,1765559294465,-531.18,0.00038904,30]
[398373115,1765559294522,-666.87,0.00038904,30]
[398373117,1765559294573,-579.42,0.00038904,30]
[398373119,1765559294626,-542.08,0.00038904,30]
[398373121,1765559294682,-500.0,0.00038904,30]
[398373123,1765559294742,-500.0,0.00038904,30]
[398373126,1765559294799,-710.84,0.00038904,30]
[398373128,1765559294849,-825.13,0.00038904,30]
[398373130,1765559294906,-500.0,0.00038904,30]
[398373132,1765559294959,-500.0,0.00038904,30]
[398373134,1765559295015,-500.0,0.00038904,30]
[398373137,1765559295068,-500.0,0.00038904,30]
[398373139,1765559295126,-500.0,0.00038904,30]
[398373141,1765559295181,-325.09046024,0.00038904,30]
[398373149,1765559295528,-713.89,0.00038904,30]
[398373152,1765559295585,-500.0,0.00038904,30]
[398373154,1765559295640,-791.45,0.00038904,30]
[398373156,1765559295696,-500.0,0.00038904,30]
[398373158,1765559295746,-500.0,0.00038904,30]
[398373160,1765559295798,-1029.59,0.00038904,30]
[398373162,1765559295852,-809.28,0.00038904,30]
[398373165,1765559295906,-500.0,0.00038904,30]
[398373167,1765559295958,-500.0,0.00038904,30]
[398373169,1765559296012,-500.0,0.00038904,30]
[398373171,1765559296073,-500.0,0.00038904,30]
[398373173,1765559296131,-501.30686937,0.00038904,30]
[398373176,1765559296193,-621.67,0.00038904,30]
[398373178,1765559296254,-642.87,0.00038904,30]
[398373180,1765559296311,-702.26,0.00038904,30]
[398373182,1765559296367,-500.0,0.00038904,30]
[398373184,1765559296422,-500.0,0.00038904,30]
[398373187,1765559296476,-500.0,0.00038904,30]
[398373189,1765559296531,-844.79,0.00038904,30]
[398373191,1765559296597,-500.0,0.00038904,30]
[398373194,1765559296662,-1085.81,0.00038904,30]
[398373196,1765559296716,-500.0,0.00038904,30]
[398373198,1765559296774,-500.0,0.00038904,30]
[398373200,1765559296828,-500.0,0.00038904,30]
[398373202,1765559296890,-500.0,0.00038904,30]
[398373204,1765559296958,-500.0,0.00038904,30]
[398373207,1765559297022,-500.0,0.00038904,30]
[398373209,1765559297083,-1828.22,0.00038904,30]
[398373211,1765559297138,-500.0,0.00038904,30]
[398373213,1765559297204,-500.0,0.00038904,30]
[398373215,1765559297263,-1274.19,0.00038904,30]
[398373217,1765559297320,-500.0,0.00038904,30]
[398373220,1765559297380,-500.0,0.00038904,30]
[398373221,1765559297443,-2332.37,0.00038904,30]
[398373222,1765559297503,-815.59,0.00038904,30]
[398373224,1765559297557,-644.63,0.00038904,30]
[398373226,1765559297618,-500.0,0.00038904,30]
[398373228,1765559297673,-500.0,0.00038904,30]
[398373230,1765559297730,-521.76442528,0.00038904,30]
[398373232,1765559297786,-770.84,0.00038904,30]
[398373235,1765559297850,-981.12,0.00038904,30]
[398373237,1765559297912,-570.19,0.00038904,30]
[398373239,1765559297969,-500.0,0.00038904,30]
[398373241,1765559298029,-500.0,0.00038904,30]
[398373243,1765559298089,-500.0,0.00038904,30]
[398373245,1765559298155,-3691.57,0.00038904,30]
[398373247,1765559298214,-500.0,0.00038904,30]
[398373250,1765559298274,-1313.11,0.00038904,30]
[398373252,1765559298333,-632.78419049,0.00038904,30]
[398373254,1765559298394,-500.0,0.00038904,30]
[398373256,1765559298458,-585.9,0.00038904,30]
[398373258,1765559298521,-589.02,0.00038904,30]
[398373260,1765559298586,-500.0,0.00038904,30]
[398373263,1765559298648,-500.0,0.00038904,30]
[398373265,1765559298710,-500.0,0.00038904,30]
[398373267,1765559298765,-501.81839061,0.00038904,30]
[398373269,1765559298819,-500.0,0.00038904,30]
[398373271,1765559298870,-500.0,0.00038904,30]
[398373274,1765559298929,-503.83373934,0.00038904,30]
[398373276,1765559298987,-500.0,0.00038904,30]
[398373278,1765559299058,-500.0,0.00038904,30]
[398373280,1765559299117,-560.62112101,0.00038904,30]
[398373283,1765559299177,-500.0,0.00038904,30]
[398373285,1765559299234,-500.0,0.00038904,30]
[398373287,1765559299287,-500.0,0.00038904,30]
[398373289,1765559299343,-500.0,0.00038904,30]
[398373291,1765559299401,-500.0,0.00038904,30]
[398373294,1765559299464,-500.0,0.00038904,30]
[398373296,1765559299519,-500.0,0.00038904,30]
[398373298,1765559299572,-500.0,0.00038904,30]
[398373300,1765559299624,-500.0,0.00038904,30]
[398373302,1765559299676,-500.0,0.00038904,30]
[398373304,1765559299730,-500.0,0.00038904,30]
[398373307,1765559299787,-3626.89,0.00038904,30]
[398373309,1765559299849,-500.0,0.00038904,30]
[398373311,1765559299906,-784.06,0.00038904,30]
[398373313,1765559299966,-500.0,0.00038904,30]
[398373316,1765559300029,-500.0,0.00038904,30]
[398373318,1765559300096,-500.0,0.00038904,30]
[398373320,1765559300165,-505.97135796,0.00038904,30]
[398373323,1765559300233,-500.0,0.00038904,30]
[398373325,1765559300288,-500.0,0.00038904,30]
[398373327,1765559300344,-500.0,0.00038904,30]
[398373330,1765559300402,-500.0,0.00038904,30]
[398373332,1765559300459,-601.74,0.00038904,30]
[398373334,1765559300513,-500.0,0.00038904,30]
[398373336,1765559300568,-502.54391111,0.00038904,30]
[398373338,1765559300626,-526.61,0.00038904,30]
[398373340,1765559300686,-500.0,0.00038904,30]
[398373343,1765559300746,-500.0,0.00038904,30]
[398373345,1765559300799,-500.0,0.00038904,30]
[398373347,1765559300860,-500.0,0.00038904,30]
[398373350,1765559300918,-500.0,0.00038904,30]
[398373352,1765559300974,-500.0,0.00038904,30]
[398373362,1765559301406,-778.17,0.00038904,30]
[398373364,1765559301466,-500.0,0.00038904,30]
[398373366,1765559301525,-500.0,0.00038904,30]
[398373368,1765559301582,-500.0,0.00038904,30]
[398373371,1765559301637,-500.0,0.00038904,30]
[398373373,1765559301690,-500.0,0.00038904,30]
[398373375,1765559301742,-500.0,0.00038904,30]
[398373377,1765559301795,-643.31,0.00038904,30]
[398373379,1765559301848,-500.0,0.00038904,30]
[398373382,1765559301899,-500.0,0.00038904,30]
[398373384,1765559301951,-500.0,0.00038904,30]
[398373386,1765559302004,-1076.99,0.00038904,30]
[398373388,1765559302054,-500.0,0.00038904,30]
[398373390,1765559302106,-500.0,0.00038904,30]
[398373391,1765559302166,-500.0,0.00038904,30]
[398373392,1765559302223,-553.84,0.00038904,30]
[398373394,1765559302273,-500.0,0.00038904,30]
[398373396,1765559302325,-500.0,0.00038904,30]
[398373398,1765559302382,-500.0,0.00038904,30]
[398373400,1765559302438,-500.0,0.00038904,30]
[398373402,1765559302491,-513.44,0.00038904,30]
[398373404,1765559302544,-500.0,0.00038904,30]
[398373407,1765559302597,-500.0,0.00038904,30]
[398373409,1765559302647,-631.92290798,0.00038904,30]
[398373411,1765559302699,-500.0,0.00038904,30]
[398373413,1765559302749,-501.87283942,0.00038904,30]
[398373416,1765559302799,-835.61,0.00038904,30]
[398373418,1765559302850,-500.0,0.00038904,30]
[398373420,1765559302904,-1000.0,0.00038904,120]
[398373422,1765559302959,-500.0,0.00038904,30]
[398373424,1765559303019,-500.0,0.00038904,30]
[398373426,1765559303083,-3639.86,0.00038904,30]
[398373429,1765559303148,-500.0,0.00038904,30]
[398373431,1765559303213,-1233.43,0.00038904,30]
[398373433,1765559303269,-775.18,0.00038904,30]
[398373435,1765559303327,-513.22533389,0.00038904,30]
[398373437,1765559303385,-500.0,0.00038904,30]
[398373439,1765559303442,-500.0,0.00038904,30]
[398373441,1765559303495,-1307.39,0.00038904,30]
[398373443,1765559303550,-1393.87,0.00038904,30]
[398373445,1765559303606,-737.19,0.00038904,30]
[398373448,1765559303661,-500.0,0.00038904,30]
[398373450,1765559303713,-500.0,0.00038904,30]
[398373452,1765559303766,-500.0,0.00038904,30]
[398373454,1765559303819,-500.0,0.00038904,30]
[398373456,1765559303873,-500.0,0.00038904,30]
[398373458,1765559303932,-500.0,0.00038904,30]
[398373461,1765559303991,-500.0,0.00038904,30]
[398373463,1765559304048,-1276.27,0.00038904,30]
[398373465,1765559304102,-500.0,0.00038904,30]
[398373467,1765559304163,-500.0,0.00038904,30]
[398373469,1765559304223,-536.91,0.00038904,30]
[398373471,1765559304282,-500.0,0.00038904,30]
[398373473,1765559304343,-500.0,0.00038904,30]
[398373476,1765559304402,-1276.44,0.00038904,30]
[398373478,1765559304459,-500.0,0.00038904,30]
[398373480,1765559304511,-563.19,0.00038904,30]
[398373482,1765559304565,-500.0,0.00038904,30]
[398373484,1765559304620,-500.0,0.00038904,30]
[398373486,1765559304676,-691.33,0.00038904,30]
[398373488,1765559304731,-500.0,0.00038904,30]
[398373491,1765559304786,-500.0,0.00038904,30]
[398373493,1765559304843,-500.0,0.00038904,30]
[398373495,1765559304898,-500.0,0.00038904,30]
[398373497,1765559304952,-500.0,0.00038904,30]
[398373499,1765559305008,-500.0,0.00038904,30]
[398373501,1765559305065,-500.0,0.00038904,30]
[398373504,1765559305123,-500.0,0.00038904,30]
[398373506,1765559305181,-500.0,0.00038904,30]
[398373507,1765559305249,-619.73,0.00038904,30]
[398373508,1765559305309,-500.0,0.00038904,30]
[398373509,1765559305373,-500.0,0.00038904,30]
[398373510,1765559305435,-500.0,0.00038904,30]
[398373511,1765559305500,-500.0,0.00038904,30]
[398373512,1765559305562,-857.44,0.00038904,30]
[398373513,1765559305623,-500.0,0.00038904,30]
[398373514,1765559305685,-573.64,0.00038904,30]
[398373515,1765559305743,-572.6,0.00038904,30]
[398373518,1765559305802,-286.45351508,0.00038904,30]
[398373519,1765559305864,-500.0,0.00038904,30]
[398373520,1765559305927,-561.54,0.00038904,30]
[398373521,1765559305989,-580.19,0.00038904,30]
[398373522,1765559306052,-1340.57,0.00038904,30]